fUSD/lending_fUSD_20240606
["ID","MTS","AMOUNT","RATE_DAILY","PERIOD"]
[328683428,1717698633926,-544.02,0.00028988,2]
[328683430,1717698633938,-877.69203614,0.00028988,2]
[328683433,1717698633950,-615.25441392,0.00028988,2]
[328683435,1717698633962,-600.0,0.00028988,2]
[328683437,1717698633973,-937.51689251,0.00028988,2]
[328683466,1717698638207,-224.72691837,0.00028978,2]
[328683467,1717698638217,-1001.20199665,0.00028988,2]
[328683468,1717698638228,-481.346772,0.00028988,2]
[328683469,1717698638240,-1002.79530078,0.00028988,2]
[328683470,1717698638374,-3966.91236017,0.00028988,2]
[328683471,1717698638387,-17760.41361349,0.00028988,2]
[328683472,1717698638539,-7000.00203534,0.00028988,2]
[328683473,1717698638552,-2921.0723228,0.00028988,2]
[328683701,1717698642861,-280.16,0.00028978,10]
[328683703,1717698642870,-2769.60858233,0.00028988,2]
[328683705,1717698642882,-3527.37358014,0.00028988,2]
[328683719,1717698643610,-355.83024,0.00028988,2]
[328683720,1717698643621,-1882.82369791,0.00028988,2]
[328683721,1717698643859,-295.1593184,0.00028988,2]
[328683849,1717698844874,150.0,0.000118,2]
[328683850,1717698844897,150.0,0.000118,2]
[328683851,1717698844920,150.0,0.000118,2]
[328683852,1717698844951,150.0,0.000118,2]
[328683853,1717698844976,150.0,0.000118,2]
[328683854,1717698845000,150.0,0.000118,2]
[328683855,1717698845024,150.0,0.000118,2]
[328683856,1717698845048,150.0,0.000118,2]
[328683857,1717698845072,68.42502632,0.000118,2]
[328683858,1717698851583,158.55312829,0.00011,2]
[328683860,1717698875689,2552.42616078,8.25e-05,2]
[328683861,1717698876027,155.0,0.00011,2]
[328683862,1717698876062,10217.3565028,0.00011,2]
[328683863,1717698876087,5000.0,0.00011,2]
[328683864,1717698876111,5000.0,0.00011,2]
[328683865,1717698876135,4434.36222854,0.00011,2]
[328683866,1717698890048,169.15768973,8.25e-05,2]
[328683867,1717698892011,254.61831232,0.00011,2]
[328683868,1717698892045,141.86176941,0.00011,2]
[328683869,1717698892067,5000.0,0.00011,2]
[328683870,1717698892091,5000.0,0.00011,2]
[328683871,1717698892114,5000.0,0.00011,2]
[328683872,1717698892139,5000.0,0.00011,2]
[328683873,1717698892162,4509.85696193,0.00011,2]
[328683874,1717698908029,152.33629251,0.00011,2]
[328683875,1717698908052,152.33629251,0.00011,2]
[328683876,1717698908074,152.33629251,0.00011,2]
[328683877,1717698908096,152.33629251,0.00011,2]
[328683878,1717698908119,152.33629251,0.00011,2]
[328683879,1717698908140,152.33629251,0.00011,2]
[328683880,1717698908166,152.33629251,0.00011,2]
[328683881,1717698908188,152.33629251,0.00011,2]
[328683882,1717698908212,152.33629251,0.00011,2]
[328683883,1717698908235,152.33629251,0.00011,2]
[328683884,1717698908257,152.33629251,0.00011,2]
[328683885,1717698908280,152.33629251,0.00011,2]
[328683886,1717698908302,152.33629251,0.00011,2]
[328683887,1717698908323,152.33629251,0.00011,2]
[328683888,1717698908346,152.33629251,0.00011,2]
[328683889,1717698908370,152.33629251,0.00011,2]
[328683890,1717698908395,152.33629251,0.00011,2]
[328683891,1717698908417,152.33629251,0.00011,2]
[328683892,1717698908438,152.33629251,0.00011,2]
[328683893,1717698908463,152.33629251,0.00011,2]
[328683894,1717698908486,152.33629251,0.00011,2]
[328683895,1717698908507,152.33629251,0.00011,2]
[328683896,1717698908529,152.33629251,0.00011,2]
[328683897,1717698908552,490.14303807,0.00011,2]
[328683898,1717698908574,5000.0,0.00011,2]
[328683899,1717698908596,5000.0,0.00011,2]
[328683900,1717698908617,5000.0,0.00011,2]
[328683901,1717698908640,5000.0,0.00011,2]
[328683902,1717698908664,657.84096554,0.00011,2]
[328683904,1717698924027,4342.15903446,0.00011,2]
[328683905,1717698924051,5000.0,0.00011,2]
[328683906,1717698924073,5000.0,0.00011,2]
[328683907,1717698924097,5000.0,0.00011,2]
[328683908,1717698924120,3744.21479052,0.00011,2]
[328683909,1717699145493,566.44007287,0.0003,120]
[328683934,1717699633647,308.18,0.000137,5]
[328684042,1717699832550,-263.66693383,0.00010273,2]
[328684043,1717699832560,-90.03106618,0.00010273,2]
[328684049,1717699832959,-22.0910098,0.00010273,2]
[328684050,1717699832972,-533.27772284,0.00010273,2]
[328684051,1717699832981,-429.53862842,0.00010274,2]
[328684052,1717699832991,-1358.49416162,0.00010275,2]
[328684053,1717699833001,-3169.338978,0.00012049,2]
[328684054,1717699833010,-8884.40570912,0.0001211,2]
[328684064,1717699841239,-331.66596371,0.0001211,2]
[328684065,1717699841248,-3874.51,0.00012389,2]
[328684066,1717699841258,-7536.18410541,0.000124,2]
[328684067,1717699841269,-3433.96877413,0.000124,2]
[328684068,1717699841278,-12554.4829,0.00012411,2]
[328684069,1717699841287,-201.53,0.00012423,2]
[328684070,1717699841296,-150.0,0.00012471,2]
[328684071,1717699841306,-161.67133303,0.00012474,2]
[328684072,1717699841316,-1000.0,0.00012599,2]
[328684073,1717699841326,-200.0,0.00012628,2]
[328684074,1717699841335,-172.58,0.00012676,2]
[328684075,1717699841344,-499.99,0.00012676,2]
[328684076,1717699841354,-499.99,0.00012685,2]
[328684077,1717699841363,-150.0,0.00012685,2]
[328684078,1717699841373,-155.44,0.00012697,2]
[328684079,1717699841382,-150.0,0.00012699,2]
[328684080,1717699841391,-5144.00348859,0.00012711,2]
[328684081,1717699841401,-250.0,0.00012712,2]
[328684082,1717699841410,-23900.0,0.00012721,2]
[328684083,1717699841420,-155.44,0.0001278,2]
[328684084,1717699841429,-155.44,0.00012863,2]
[328684085,1717699841439,-155.44,0.00012945,2]
[328684086,1717699841449,-1396.88258143,0.00013,2]
[328684087,1717699841458,-155.44,0.00013028,2]
[328684088,1717699841468,-155.44,0.00013111,2]
[328684089,1717699841479,-155.44,0.00013194,2]
[328684090,1717699841488,-155.44,0.00013276,2]
[328684091,1717699841498,-28257.99431967,0.00013309,2]
[328684092,1717699841507,-155.44,0.00013359,2]
[328684093,1717699841517,-300.0,0.000136,4]
[328684094,1717699841527,-158.93,0.00013647,2]
[328684095,1717699841536,-158.93,0.00013654,2]
[328684096,1717699841546,-158.93,0.00013662,2]
[328684097,1717699841557,-158.93,0.0001367,2]
[328684098,1717699841569,-158.93,0.00013677,2]
[328684099,1717699841579,-158.93,0.00013685,2]
[328684100,1717699841588,-158.93,0.00013692,2]
[328684101,1717699841598,-259.78,0.00013699,2]
[328684102,1717699841607,-2751.0,0.00013699,2]
[328684103,1717699841617,-161.43,0.00013699,2]
[328684104,1717699841626,-158.93,0.000137,2]
[328684105,1717699841635,-291.82,0.000137,5]
[328684106,1717699841645,-947.47056362,0.000137,2]
[328684107,1717699841654,-180.60886759,0.000137,2]
[328684108,1717699841665,-4757.51990888,0.000137,2]
[328684110,1717699841678,-155.50511398,0.000137,2]
[328684113,1717699841688,-155.0,0.000137,2]
[328684114,1717699841697,-158.93,0.00013708,2]
[328684115,1717699841708,-158.93,0.00013715,2]
[328684118,1717699841718,-210.0,0.00013718,2]
[328684121,1717699841727,-1000.0,0.000138,5]
[328684124,1717699841736,-192.05,0.00013887,3]
[328684125,1717699841747,-526.69,0.0001389,2]
[328684126,1717699841756,-97981.87581962,0.00013897,2]
[328684127,1717699841768,-53132.64024993,0.00013897,2]
[328684128,1717699841779,-991.99591383,0.00013897,2]
[328684129,1717699841792,-4062.03978186,0.00013897,2]
[328684130,1717699841805,-2606.92576694,0.00013897,2]
[328684131,1717699841821,-1138.18072319,0.00013897,2]
[328684139,1717699843388,-217.14186849,0.00013646,2]
[328684141,1717699843397,-58959.01407913,0.00013897,2]
[328684143,1717699843409,-312.3160075,0.00013897,2]
[328684144,1717699843420,-353.20595001,0.00013897,2]
[328684145,1717699843431,-1418.2339846,0.00013897,2]
[328684146,1717699843443,-9416.45803534,0.00013897,2]
[328684168,1717699843819,-26132.9,0.00013897,2]
[328684170,1717699843831,-701.11,0.00013897,2]
[328684172,1717699843844,-4559.69292935,0.00013897,2]
[328684176,1717699843900,-8538.77160139,0.00013897,2]
[328684177,1717699843911,-3628.62136247,0.00013897,2]
[328684178,1717699843923,-485.29999995,0.00013897,2]
[328684179,1717699843934,-709.17,0.00013897,2]
[328684180,1717699843945,-26766.74002815,0.00013897,2]
[328684181,1717699844077,-866.3071139,0.00013897,2]
[328684182,1717699844088,-2993.7508674,0.00013897,2]
[328684183,1717699844100,-2259.76854472,0.00013897,2]
[328684184,1717699844111,-382827.84546716,0.00013897,2]
[328684185,1717699844120,-902.1222297,0.00013898,2]
[328684186,1717699844130,-474.98,0.00013899,2]
[328684187,1717699844139,-1894.5849,0.00013899,2]
[328684188,1717699844149,-161.67133303,0.000139,2]
[328684189,1717699844158,-1300.0,0.000139,5]
[328684190,1717699844170,-194.94464804,0.000139,2]
[328684191,1717699844180,-319.08773859,0.000139,2]
[328684192,1717699844191,-192.05306906,0.00013973,2]
[328684193,1717699844202,-166.43023062,0.00013973,2]
[328684194,1717699844211,-195.80265682,0.00013973,2]
[328684195,1717699844221,-637.52742036,0.00013973,2]
[328684196,1717699844231,-159.49736128,0.00013973,2]
[328684197,1717699844241,-199.89011912,0.00013987,2]
[328684198,1717699844250,-151.81,0.00013987,2]
[328684199,1717699844260,-151.81,0.0001399,2]
[328684200,1717699844269,-410.97295669,0.00013996,2]
[328684201,1717699844278,-531.0306251,0.00013997,2]
[328684202,1717699844288,-1276.26411755,0.00013997,2]
[328684203,1717699844298,-635.40011658,0.00013997,2]
[328684204,1717699844308,-2369.26880393,0.00013997,2]
[328684205,1717699844319,-10529.07354074,0.00013998,2]
[328684206,1717699844327,-3017.14790964,0.00013998,2]
[328684207,1717699844337,-646.2410345,0.00013998,2]
[328684208,1717699844347,-4000.0,0.00013998,2]
[328684209,1717699844357,-1067.04191087,0.00013998,2]
[328684211,1717699844366,-313848.21500956,0.00014,2]
[328684214,1717699844382,-28370.81561033,0.00014,2]
[328684216,1717699844393,-1618938.24882355,0.00014,2]
[328684218,1717699844404,-1678.84245255,0.00014,2]
[328684220,1717699844416,-27532.02350241,0.00014,2]
[328684223,1717699844428,-6108.19445987,0.00014,2]
[328684225,1717699844439,-977.80187974,0.00014,2]
[328684227,1717699844451,-3366.37988417,0.00014,2]
[328684229,1717699844462,-1476.84400918,0.00014,2]
[328684231,1717699844474,-1815.501262,0.00014,2]
[328684279,1717699846586,-348.66827796,0.00013896,2]
[328684280,1717699846596,-149.77306901,0.00014,2]
[328684281,1717699846607,-1836.01194963,0.00014,2]
[328684282,1717699846618,-2403.57912576,0.00014,2]
[328684283,1717699846805,-2421.69788233,0.00014,2]
[328684284,1717699846817,-331.13787369,0.00014,2]
[328684285,1717699846828,-923.05881534,0.00014,2]
[328684286,1717699846840,-190511.83006999,0.00014,2]
[328684287,1717699846852,-895.73293621,0.00014,2]
[328684288,1717699846864,-617.06326402,0.00014,2]
[328684289,1717699847024,-17699.0,0.00014,2]
[328684292,1717699847035,-258.45956214,0.00014,2]
[328684341,1717699850447,-150.0,0.00012011,2]
[328684342,1717699851014,-150.0,0.00012011,2]
[328684343,1717699851483,-150.0,0.00012011,2]
[328684344,1717699852228,-150.0,0.00012011,2]
[328684345,1717699883033,-150.0,0.0001201,2]
[328684346,1717699883770,-141.25612605,0.0001201,2]
[328684347,1717699883795,-8.74387395,0.0001201,2]
[328684348,1717699884464,-150.0,0.0001201,2]
[328684353,1717699915340,-150.0,0.00012009,2]
[328684354,1717699915937,-150.0,0.00012009,2]
[328684355,1717699916679,-150.0,0.00012009,2]
[328684356,1717699917354,-150.0,0.00012009,2]
[328684357,1717699917828,-150.0,0.00012009,2]
[328684358,1717699918585,-150.0,0.00012009,2]
[328684359,1717699919126,-31.79955074,0.00012009,2]
[328684360,1717699919152,-118.20044926,0.0001201,2]
[328684363,1717699940170,-14.31180284,0.0001201,2]
[328684364,1717699940193,-135.68819716,0.0001201,2]
[328684365,1717699941052,-44.92067043,0.0001201,2]
[328684366,1717699941075,-105.07932957,0.00012011,2]
[328684367,1717699946275,-150.0,0.00010175,2]
[328684368,1717699946829,-150.0,0.00010175,2]
[328684369,1717699947771,-150.0,0.00010175,2]
[328684371,1717699948364,-150.0,0.00010175,2]
[328684372,1717699949121,-150.0,0.00010175,2]
[328684373,1717699950466,-150.0,0.00010175,2]
[328684374,1717699951281,-150.0,0.00010175,2]
[328684375,1717699952008,-150.0,0.00010175,2]
[328684376,1717699952563,-150.0,0.00010175,2]
[328684377,1717699953174,-150.0,0.00010175,2]
[328684378,1717699953848,-150.0,0.00010175,2]
[328684379,1717699954362,-150.0,0.00010175,2]
[328684380,1717699955041,-150.0,0.00010175,2]
[328684382,1717699955571,-150.0,0.00010175,2]
[328684383,1717699956140,-150.0,0.00010175,2]
[328684384,1717699957388,-150.0,0.00010175,2]
[328684385,1717699957936,-150.0,0.00010175,2]
[328684386,1717699958805,-150.0,0.00010175,2]
[328684387,1717699959415,-150.0,0.00010175,2]
[328684388,1717699960602,-150.0,0.00010175,2]
[328684389,1717699961195,-150.0,0.00010175,2]
[328684390,1717699961642,-158.55312829,0.00010175,2]
[328684391,1717699962362,-158.55312829,0.00010175,2]
[328684392,1717699962877,-158.55312829,0.00010175,2]
[328684393,1717699963573,-158.55312829,0.00010175,2]
[328684394,1717699964206,-158.55312829,0.00010175,2]
[328684395,1717699964776,-158.55312829,0.00010175,2]
[328684396,1717699965640,-158.55312829,0.00010175,2]
[328684398,1717699986574,-158.55312823,0.00010175,2]
[328684399,1717699987186,-150.0,0.00010175,2]
[328684400,1717699987885,-150.0,0.00010175,2]
[328684402,1717699988474,-150.0,0.00010175,2]
[328684403,1717699989349,-150.0,0.00010175,2]
[328684404,1717699990085,-150.0,0.00010175,2]
[328684405,1717699990571,-150.0,0.00010174,2]
[328684406,1717699991197,-150.0,0.00010174,2]
[328684407,1717699991992,-150.0,0.00010174,2]
[328684408,1717699992702,-150.0,0.00010174,2]
[328684409,1717699993375,-150.0,0.00010174,2]
[328684411,1717700101329,150.0,9.974e-05,2]
[328684412,1717700101354,150.0,9.974e-05,2]
[328684413,1717700101378,150.0,9.974e-05,2]
[328684414,1717700101402,150.0,9.974e-05,2]
[328684415,1717700101425,150.0,9.974e-05,2]
[328684416,1717700101449,150.0,9.974e-05,2]
[328684417,1717700101472,150.0,9.974e-05,2]
[328684418,1717700101495,150.0,9.974e-05,2]
[328684419,1717700101520,5019.17406967,9.974e-05,2]
[328684421,1717700138586,289.77027147,9.974e-05,2]
[328684424,1717700143211,150.0,9.974e-05,2]
[328684425,1717700143234,150.0,9.974e-05,2]
[328684426,1717700143257,62.81476569,9.974e-05,2]
[328684428,1717700154495,150.0,9.974e-05,2]
[328684429,1717700154518,150.0,9.974e-05,2]
[328684430,1717700154540,42.47512982,9.974e-05,2]
[328684431,1717700159247,362.81476569,9.974e-05,2]
[328684433,1717700179183,362.81476569,9.974e-05,2]
[328684435,1717700197197,150.0,9.974e-05,2]
[328684436,1717700197220,24.37046862,9.974e-05,2]
[328684437,1717700221704,12438.3481393,9.974e-05,2]
[328684438,1717700531005,150.0,9.974e-05,2]
[328684439,1717700531031,150.0,9.974e-05,2]
[328684440,1717700531053,150.0,9.974e-05,2]
[328684441,1717700531074,150.0,9.974e-05,2]
[328684442,1717700531096,189.20460961,9.974e-05,2]
[328684443,1717700531118,150.0,9.974e-05,2]
[328684444,1717700531141,8.02212968,9.974e-05,2]
[328684445,1717700557917,150.0,9.974e-05,2]
[328684446,1717700557941,150.0,9.974e-05,2]
[328684447,1717700557968,150.0,9.974e-05,2]
[328684448,1717700557991,150.0,9.974e-05,2]
[328684449,1717700558014,150.0,9.974e-05,2]
[328684450,1717700558036,150.0,9.974e-05,2]
[328684451,1717700558058,150.0,9.974e-05,2]
[328684452,1717700558086,150.0,9.974e-05,2]
[328684453,1717700558110,547481.44144367,9.974e-05,2]
[328684454,1717700571862,147664.98952103,9.974e-05,2]
[328684456,1717700633794,150.0,9.974e-05,2]
[328684457,1717700633817,150.0,9.974e-05,2]
[328684458,1717700634067,150.0,9.974e-05,2]
[328684459,1717700634093,6701.87055383,9.974e-05,2]
[328684460,1717700669807,457.00887753,9.974e-05,2]
[328684461,1717700750473,-150.0,0.00010012,2]
[328684462,1717700750713,-150.0,0.00010012,2]
[328684463,1717700756078,150.0,0.00010011,2]
[328684464,1717700756103,150.0,0.00010011,2]
[328684465,1717700756127,129.53862842,0.00010011,2]
[328684466,1717700757565,-151.7710315,0.00010012,2]
[328684467,1717700758906,-152.33629251,0.00010012,2]
[328684468,1717700759560,-152.33629251,0.00010012,2]
[328684469,1717700760063,-152.33629251,0.00010012,2]
[328684470,1717700760774,-152.33629251,0.00010012,2]
[328684471,1717700761476,-152.33629251,0.00010012,2]
[328684472,1717700761932,-152.33629251,0.00010012,2]
[328684473,1717700762574,-152.33629251,0.00010012,2]
[328684474,1717700763106,-150.0,0.00010011,2]
[328684475,1717700763130,-2.33629251,0.00010011,2]
[328684476,1717700769963,2132.70809514,9.974e-05,2]
[328684477,1717700793740,1547.430532,9.961e-05,2]
[328684478,1717700795254,9216.07167283,0.0001001,2]
[328684479,1717700806559,1260.85014342,0.0001001,2]
[328684491,1717700875213,2478.15075374,0.0001001,2]
[328684492,1717700879333,299.61289414,0.0001001,2]
[328684493,1717700893348,299.61289414,0.0001001,2]
[328684494,1717700899046,1029.94456226,0.0001001,2]
[328684495,1717700912046,180.60886759,0.0001001,2]
[328684496,1717700917335,299.61289414,0.0001001,2]
[328684497,1717700928010,180.8818987,0.0001001,2]
[328684498,1717700931336,299.61289414,0.0001001,2]
[328684518,1717700959449,297.16931083,0.0001001,2]
[328684522,1717701013036,178.24,9.815e-05,2]
[328684531,1717701031841,-689.30241408,0.00010011,2]
[328684532,1717701031853,-3599.8176295,0.00010011,2]
[328684533,1717701031863,-150.0,0.00010011,2]
[328684534,1717701031872,-6898.17859748,0.00010012,2]
[328684535,1717701031883,-197.4441176,0.00010174,2]
[328684536,1717701031893,-542.57,0.00010833,2]
[328684537,1717701031903,-164.01,0.00010903,2]
[328684538,1717701031914,-210.0,0.00011012,2]
[328684539,1717701031924,-9216.07167283,0.0001201,2]
[328684540,1717701031934,-28.781067,0.00012011,2]
[328684541,1717701031943,-499.99,0.00012011,2]
[328684542,1717701031953,-1953.58,0.00012011,2]
[328684543,1717701031964,-293.0,0.00012113,2]
[328684544,1717701031973,-508.53546814,0.00012405,2]
[328684545,1717701031985,-8508.70686355,0.00012406,2]
[328684546,1717701031995,-23900.0,0.00012407,2]
[328684547,1717701032007,-2582.33,0.00012409,2]
[328684548,1717701032017,-598.36,0.00012422,2]
[328684549,1717701032029,-250.0,0.00012605,2]
[328684550,1717701032038,-150.0,0.00012881,2]
[328684551,1717701032047,-542.57,0.00013097,2]
[328684552,1717701032057,-411.0,0.00013324,2]
[328684553,1717701032069,-161.33,0.00013699,2]
[328684554,1717701032078,-316.24,0.00013699,2]
[328684555,1717701032090,-1391.1277063,0.00013699,2]
[328684556,1717701032100,-1383.53,0.00013699,2]
[328684557,1717701032112,-155.0,0.000137,2]
[328684558,1717701032124,-25989.6052,0.00013798,2]
[328684559,1717701032133,-789.35695097,0.00013799,2]
[328684560,1717701032142,-354.11161591,0.00013844,2]
[328684561,1717701032151,-779.89932,0.0001386,2]
[328684562,1717701032162,-412.75360643,0.00013869,2]
[328684563,1717701032171,-160.04,0.00013888,3]
[328684564,1717701032180,-480.14,0.00013888,3]
[328684565,1717701032190,-427.87984777,0.00013896,2]
[328684566,1717701032201,-76148.80672032,0.00013898,2]
[328684567,1717701032213,-448.12958754,0.00013898,2]
[328684568,1717701032226,-7450.39419363,0.00013898,2]
[328684569,1717701032237,-6075.0,0.00013898,2]
[328684570,1717701032250,-700.0,0.00013898,2]
[328684572,1717701032265,-650.01339646,0.00013898,2]
[328684575,1717701032276,-765.29022052,0.00013898,2]
[328684577,1717701032287,-900.37502554,0.00013898,2]
[328684579,1717701032298,-696.77431602,0.00013898,2]
[328684581,1717701032309,-452.75892829,0.00013898,2]
[328684586,1717701037704,-1936.04088029,0.00013898,2]
[328684587,1717701037716,-1567.583997,0.00013898,2]
[328684588,1717701037728,-1658.09113468,0.00013898,2]
[328684589,1717701037740,-35837.93462816,0.00013898,2]
[328684590,1717701037753,-977.69249947,0.00013898,2]
[328684591,1717701037765,-708.7166173,0.00013898,2]
[328684592,1717701037777,-997.89297729,0.00013898,2]
[328684593,1717701037789,-4350.98347851,0.00013898,2]
[328684594,1717701039715,-473.3383626,0.00013898,2]
[328684595,1717701039727,-354.94,0.00013898,2]
[328684596,1717701039739,-319.3515,0.00013898,2]
[328684602,1717701040731,-425269.08607062,0.00013898,2]
[328684603,1717701040741,-9341.2151,0.00013899,2]
[328684604,1717701040751,-174.5412,0.00013899,2]
[328684605,1717701040762,-53678.2171,0.00013899,2]
[328684606,1717701040771,-6913.5928,0.00013899,2]
[328684607,1717701040781,-3274.8957,0.00013899,2]
[328684608,1717701040790,-194.94464803,0.000139,2]
[328684609,1717701040801,-465.73647237,0.000139,2]
[328684610,1717701040811,-151.81,0.0001399,2]
[328684611,1717701040820,-10963.29668548,0.00013999,2]
[328684612,1717701040830,-615.11417704,0.00013999,2]
[328684613,1717701040840,-337268.74352212,0.00014,2]
[328684614,1717701040855,-1710.0,0.00014,2]
[328684615,1717701040871,-8757.55229017,0.00014,2]
[328684616,1717701040884,-15312.29744256,0.00014,2]
[328684617,1717701040912,-1415.55102347,0.00014,2]
[328684618,1717701040924,-7543.28006216,0.00014,2]
[328684619,1717701041830,-1028.443,0.00014,2]
[328684620,1717701041843,-258.26659757,0.00014,2]
[328684621,1717701042006,-901.46094364,0.00014,2]
[328684622,1717701042018,-773.95903373,0.00014,2]
[328684623,1717701042034,-738.7893376,0.00014,2]
[328684624,1717701042047,-2841.42497675,0.00014,2]
[328684625,1717701042059,-16873.43434595,0.00014,2]
[328684626,1717701042072,-2804.0327304,0.00014,2]
[328684627,1717701042084,-21169.5176462,0.00014,2]
[328684628,1717701042181,-1138.0,0.00014,2]
[328684629,1717701042192,-3950.40628861,0.00014,2]
[328684637,1717701042970,-251.22880454,0.00014,2]
[328684641,1717701043166,-500.18473603,0.00014,2]
[328684644,1717701043177,-12867.78586447,0.00014,2]
[328684646,1717701043188,-356.37132,0.00014,2]
[328684648,1717701043201,-68908.71070131,0.00014,2]
[328684650,1717701043210,-2000.0,0.00014,2]
[328684652,1717701043220,-200.0,0.00014,2]
[328684654,1717701043230,-200.0,0.00014067,2]
[328684656,1717701043239,-2000.0,0.0001414,2]
[328684658,1717701043249,-200.0,0.0001414,2]
[328684660,1717701043259,-357.0,0.00014657,2]
[328684662,1717701043268,-166.07,0.00014827,2]
[328684664,1717701043278,-2582.33,0.00015148,2]
[328684666,1717701043287,-320.08,0.00015258,3]
[328684668,1717701043297,-542.57,0.00015361,2]
[328684670,1717701043306,-200.0,0.00015825,2]
[328684672,1717701043316,-789.35695094,0.00016099,2]
[328684674,1717701043326,-779.89933,0.0001636,2]
[328684676,1717701043335,-161.33,0.00016438,2]
[328684679,1717701043344,-3121.66503706,0.00017259,2]
[328684681,1717701043354,-200.0,0.00017584,2]
[328684683,1717701043363,-542.57,0.00017625,2]
[328684685,1717701043372,-2582.33,0.00017888,2]
[328684687,1717701043381,-465.73647236,0.000179,2]
[328684688,1717701043392,-1000.0,0.00018356,3]
[328684691,1717701043401,-789.35695094,0.00018399,2]
[328684693,1717701043411,-779.89933,0.0001886,2]
[328684695,1717701043420,-411.82224274,0.00019178,2]
[328684697,1717701043429,-449.35897558,0.00019178,2]
[328684699,1717701043439,-500.0,0.00019178,2]
[328684701,1717701043448,-500.0,0.00019178,2]
[328684702,1717701043459,-415.54551882,0.00019178,2]
[328684703,1717701043469,-316.24,0.00019178,2]
[328684704,1717701043479,-200.0,0.00019342,2]
[328684705,1717701043489,-1000.0,0.00019587,2]
[328684708,1717701043499,-1000.0,0.00019587,2]
[328684710,1717701043508,-1000.0,0.00019587,2]
[328684712,1717701043518,-1000.0,0.00019587,2]
[328684713,1717701043527,-1000.0,0.00019587,2]
[328684716,1717701043537,-1000.0,0.00019587,2]
[328684718,1717701043547,-1000.0,0.00019587,2]
[328684720,1717701043556,-1000.0,0.00019587,2]
[328684722,1717701043565,-1000.0,0.00019587,2]
[328684724,1717701043575,-1000.0,0.00019587,2]
[328684726,1717701043584,-1000.0,0.00019587,2]
[328684728,1717701043593,-1000.0,0.00019587,2]
[328684730,1717701043603,-1000.0,0.00019587,2]
[328684732,1717701043612,-1000.0,0.00019587,2]
[328684734,1717701043622,-1000.0,0.00019587,2]
[328684736,1717701043631,-1000.0,0.00019587,2]
[328684738,1717701043641,-1000.0,0.00019587,2]
[328684740,1717701043650,-1000.0,0.00019587,2]
[328684742,1717701043662,-1000.0,0.00019587,2]
[328684744,1717701043671,-1000.0,0.00019587,2]
[328684745,1717701043680,-1000.0,0.00019587,2]
[328684748,1717701043689,-176.0,0.00019587,2]
[328684750,1717701043698,-542.57,0.00019889,2]
[328684752,1717701043708,-583.2119493,0.000199,3]
[328684755,1717701043718,-1980.08690757,0.0002,2]
[328684757,1717701043728,-6258.42600459,0.0002,2]
[328684760,1717701043738,-226.60187199,0.000201,2]
[328684762,1717701043747,-789.35695094,0.00020699,2]
[328684764,1717701043757,-32130.0,0.000208,2]
[328684766,1717701043766,-200.0,0.00021101,2]
[328684768,1717701043775,-779.89933,0.0002136,2]
[328684770,1717701043785,-300.0,0.0002146,2]
[328684771,1717701043794,-165.8,0.00021505,2]
[328684774,1717701043804,-800.0,0.00021505,2]
[328684776,1717701043813,-250.0,0.00021505,2]
[328684777,1717701043823,-3750.35,0.00021505,2]
[328684778,1717701043833,-11734.0,0.000216,3]
[328684779,1717701043844,-526.69,0.00021699,2]
[328684780,1717701043853,-465.73647236,0.000219,2]
[328684782,1717701043863,-259.75,0.00021918,2]